[Event "Early-Titled-Tuesday-Blitz-October-24-2023"]
[Site "Chess.com"]
[Date "2023.10.24"]
[Round "9"]
[White "KononenkoD"]
[Black "Orujov2008"]
[Result "0-1"]
[WhiteElo "2592"]
[BlackElo "2742"]
[TimeControl "180+1"]
[EndTime "9:43:51 PDT"]
[Termination "Orujov2008 won on time"]

1. d4 {[%clk 0:03:00.9]} 1... Nf6 {[%clk 0:02:59.6]} 2. c4 {[%clk 0:03:01.3]}
2... e6 {[%clk 0:03:00.1]} 3. g3 {[%clk 0:03:01.7]} 3... d5 {[%clk 0:03:00.2]}
4. Nf3 {[%clk 0:03:01.7]} 4... Be7 {[%clk 0:03:01]} 5. Bg2 {[%clk 0:03:01.8]}
5... O-O {[%clk 0:03:01.8]} 6. O-O {[%clk 0:03:01.9]} 6... dxc4 {[%clk
0:03:02.6]} 7. Qc2 {[%clk 0:03:01.3]} 7... a6 {[%clk 0:03:03]} 8. a4 {[%clk
0:03:00.9]} 8... Nc6 {[%clk 0:03:02.7]} 9. Qxc4 {[%clk 0:03:00.3]} 9... Na5
{[%clk 0:03:02.5]} 10. Qc2 {[%clk 0:02:56.1]} 10... b6 {[%clk 0:02:59.7]} 11.
Ne5 {[%clk 0:02:27.5]} 11... Bb7 {[%clk 0:02:59.1]} 12. Bxb7 {[%clk 0:02:22.5]}
12... Nxb7 {[%clk 0:03:00]} 13. Nc6 {[%clk 0:02:22.7]} 13... Qe8 {[%clk
0:02:57.8]} 14. a5 {[%clk 0:01:48.6]} 14... Bc5 {[%clk 0:02:43.6]} 15. dxc5
{[%clk 0:01:13.7]} 15... Qxc6 {[%clk 0:02:40.4]} 16. b4 {[%clk 0:01:12.8]} 16...
b5 {[%clk 0:02:36.2]} 17. Bb2 {[%clk 0:01:08.8]} 17... Nd5 {[%clk 0:02:34.6]}
18. Qb3 {[%clk 0:01:04.6]} 18... f6 {[%clk 0:02:30.7]} 19. Nd2 {[%clk
0:01:04.5]} 19... Nd8 {[%clk 0:02:24.3]} 20. Rad1 {[%clk 0:01:02.9]} 20... Nf7
{[%clk 0:02:18.8]} 21. Nf3 {[%clk 0:01:02.3]} 21... Ne7 {[%clk 0:02:14]} 22. Nd4
{[%clk 0:01:00.1]} 22... Qd5 {[%clk 0:02:11]} 23. Qe3 {[%clk 0:00:32.5]} 23...
e5 {[%clk 0:02:02.2]} 24. Nxb5 {[%clk 0:00:29.6]} 24... Qc6 {[%clk 0:01:57.5]}
25. Nc3 {[%clk 0:00:27]} 25... Nf5 {[%clk 0:01:52.3]} 26. Qe4 {[%clk 0:00:23.1]}
26... Qxe4 {[%clk 0:01:46.9]} 27. Nxe4 {[%clk 0:00:24]} 27... Rfd8 {[%clk
0:01:47.3]} 28. e3 {[%clk 0:00:20.6]} 28... Ne7 {[%clk 0:01:44]} 29. Bc3 {[%clk
0:00:19.4]} 29... Nd5 {[%clk 0:01:38.3]} 30. Bd2 {[%clk 0:00:17.7]} 30... f5
{[%clk 0:01:34.3]} 31. Nc3 {[%clk 0:00:17.7]} 31... Nxb4 {[%clk 0:01:34.5]} 32.
Nb5 {[%clk 0:00:17.1]} 32... Nd5 {[%clk 0:01:27.8]} 33. Nc3 {[%clk 0:00:16.5]}
33... Nf6 {[%clk 0:01:16.8]} 34. Na4 {[%clk 0:00:15.9]} 34... Rab8 {[%clk
0:01:10.7]} 35. Bc3 {[%clk 0:00:15.6]} 35... Rxd1 {[%clk 0:01:05.4]} 36. Rxd1
{[%clk 0:00:16.5]} 36... Rb3 {[%clk 0:01:04.9]} 37. f4 {[%clk 0:00:15.9]} 37...
Ra3 {[%clk 0:00:52.7]} 38. fxe5 {[%clk 0:00:15.1]} 38... Ne4 {[%clk 0:00:52.6]}
39. Rb1 {[%clk 0:00:14.1]} 39... Nfg5 {[%clk 0:00:40.1]} 40. e6 {[%clk
0:00:13.3]} 40... Nxe6 {[%clk 0:00:36]} 41. Ra1 {[%clk 0:00:13.2]} 41... Rxa1+
{[%clk 0:00:33]} 42. Bxa1 {[%clk 0:00:14.1]} 42... N6xc5 {[%clk 0:00:33]} 43.
Nxc5 {[%clk 0:00:14.2]} 43... Nxc5 {[%clk 0:00:33.9]} 44. Bc3 {[%clk 0:00:13.5]}
44... Kf7 {[%clk 0:00:33.4]} 45. Kf1 {[%clk 0:00:12.8]} 45... g6 {[%clk
0:00:33.6]} 46. Ke2 {[%clk 0:00:12.8]} 46... Ke6 {[%clk 0:00:34.2]} 47. Bg7
{[%clk 0:00:12.3]} 47... Kd5 {[%clk 0:00:33.9]} 48. Kd2 {[%clk 0:00:12.1]} 48...
Ne4+ {[%clk 0:00:30.7]} 49. Kd3 {[%clk 0:00:11.5]} 49... c5 {[%clk 0:00:30.6]}
50. Bh8 {[%clk 0:00:10.6]} 50... c4+ {[%clk 0:00:30.8]} 51. Kc2 {[%clk
0:00:11.3]} 51... Kc5 {[%clk 0:00:31.2]} 52. Bd4+ {[%clk 0:00:09.9]} 52... Kb5
{[%clk 0:00:31.2]} 53. Bb6 {[%clk 0:00:10.5]} 53... Nc5 {[%clk 0:00:31.5]} 54.
Kc3 {[%clk 0:00:09.7]} 54... Nb3 {[%clk 0:00:31.5]} 55. Bd8 {[%clk 0:00:08.5]}
55... Nxa5 {[%clk 0:00:31.3]} 56. h3 {[%clk 0:00:08.7]} 56... Nb3 {[%clk
0:00:27.1]} 57. g4 {[%clk 0:00:08.3]} 57... fxg4 {[%clk 0:00:26.6]} 58. hxg4
{[%clk 0:00:09.2]} 58... h5 {[%clk 0:00:23.6]} 59. gxh5 {[%clk 0:00:08.2]} 59...
gxh5 {[%clk 0:00:24.5]} 60. e4 {[%clk 0:00:08.4]} 60... Nc5 {[%clk 0:00:24.5]}
61. e5 {[%clk 0:00:07.4]} 61... Ne6 {[%clk 0:00:18.9]} 62. Be7 {[%clk
0:00:07.1]} 62... Nf4 {[%clk 0:00:16.3]} 63. Kd4 {[%clk 0:00:04.6]} 63... Ng6
{[%clk 0:00:13.7]} 64. Bd6 {[%clk 0:00:04.2]} 64... h4 {[%clk 0:00:13.8]} 65. e6
{[%clk 0:00:04.5]} 65... h3 {[%clk 0:00:14.1]} 66. Kc3 {[%clk 0:00:03.8]} 66...
Kc6 {[%clk 0:00:09]} 0-1

[Event "Early-Titled-Tuesday-Blitz-October-24-2023"]
[Site "Chess.com"]
[Date "2023.10.24"]
[Round "9"]
[White "Byniolus"]
[Black "shimastream"]
[Result "0-1"]
[WhiteElo "2806"]
[BlackElo "2982"]
[TimeControl "180+1"]
[EndTime "9:44:02 PDT"]
[Termination "shimastream won by resignation"]

1. d4 {[%clk 0:03:00.9]} 1... h6 {[%clk 0:02:59.4]} 2. e4 {[%clk 0:02:57.7]}
2... e6 {[%clk 0:02:58.2]} 3. Nf3 {[%clk 0:02:53.2]} 3... d5 {[%clk 0:02:58]} 4.
Nbd2 {[%clk 0:02:44.5]} 4... Nf6 {[%clk 0:02:55.6]} 5. Bd3 {[%clk 0:02:42.1]}
5... c5 {[%clk 0:02:55.5]} 6. exd5 {[%clk 0:02:36.7]} 6... exd5 {[%clk
0:02:42.8]} 7. c3 {[%clk 0:02:24.6]} 7... Nc6 {[%clk 0:02:37.4]} 8. O-O {[%clk
0:02:20]} 8... cxd4 {[%clk 0:02:04.2]} 9. Nxd4 {[%clk 0:02:20.9]} 9... Nxd4
{[%clk 0:01:55.4]} 10. cxd4 {[%clk 0:02:21.8]} 10... Be7 {[%clk 0:01:56]} 11.
Nf3 {[%clk 0:02:16.8]} 11... O-O {[%clk 0:01:56.4]} 12. Ne5 {[%clk 0:02:17]}
12... Qb6 {[%clk 0:01:55.5]} 13. Re1 {[%clk 0:02:05.6]} 13... Be6 {[%clk
0:01:54.2]} 14. h3 {[%clk 0:01:51.9]} 14... Rac8 {[%clk 0:01:53.2]} 15. Be3
{[%clk 0:01:45.2]} 15... Qxb2 {[%clk 0:01:18.8]} 16. Rb1 {[%clk 0:01:45]} 16...
Qxa2 {[%clk 0:01:19.1]} 17. Rxb7 {[%clk 0:01:45.8]} 17... Bd6 {[%clk 0:01:09.7]}
18. Qa1 {[%clk 0:01:02.1]} 18... Qxa1 {[%clk 0:01:04.1]} 19. Rxa1 {[%clk
0:01:03]} 19... Rc3 {[%clk 0:01:03.9]} 20. Be2 {[%clk 0:00:51.4]} 20... Bb8
{[%clk 0:00:52.8]} 21. Rab1 {[%clk 0:00:39.3]} 21... Rcc8 {[%clk 0:00:34.8]} 22.
Bb5 {[%clk 0:00:27]} 22... Ne4 {[%clk 0:00:33.6]} 23. Ba6 {[%clk 0:00:17.1]}
23... Nd6 {[%clk 0:00:15.3]} 24. R7b3 {[%clk 0:00:12.8]} 24... Rce8 {[%clk
0:00:13.8]} 25. Nc6 {[%clk 0:00:10.7]} 25... Bc7 {[%clk 0:00:14.2]} 26. Bf4
{[%clk 0:00:10.1]} 26... Ra8 {[%clk 0:00:07.4]} 27. h4 {[%clk 0:00:08.2]} 27...
Nb5 {[%clk 0:00:07.1]} 28. Be3 {[%clk 0:00:07.9]} 28... Nd6 {[%clk 0:00:07]} 29.
Bf4 {[%clk 0:00:08.5]} 29... Ne8 {[%clk 0:00:07.5]} 30. Be3 {[%clk 0:00:06.1]}
30... Nf6 {[%clk 0:00:07.4]} 31. f3 {[%clk 0:00:04.7]} 31... Bb6 {[%clk
0:00:07.6]} 32. Kf2 {[%clk 0:00:03.9]} 32... Bd7 {[%clk 0:00:06.7]} 33. Bb7
{[%clk 0:00:03.8]} 33... Rae8 {[%clk 0:00:06.2]} 34. Ne5 {[%clk 0:00:03.4]}
34... Be6 {[%clk 0:00:06.6]} 35. Bc6 {[%clk 0:00:03.1]} 35... Rc8 {[%clk
0:00:06.7]} 36. Bb5 {[%clk 0:00:03.5]} 36... Rc2+ {[%clk 0:00:06.4]} 37. Kg1
{[%clk 0:00:04]} 37... Rfc8 {[%clk 0:00:06.4]} 38. g4 {[%clk 0:00:04.1]} 38...
h5 {[%clk 0:00:06.4]} 39. g5 {[%clk 0:00:04]} 39... Ne8 {[%clk 0:00:06.9]} 40.
Bd7 {[%clk 0:00:02.8]} 40... Bxd7 {[%clk 0:00:06]} 41. Nxd7 {[%clk 0:00:03.7]}
41... Nd6 {[%clk 0:00:06.5]} 42. Nxb6 {[%clk 0:00:03.6]} 42... axb6 {[%clk
0:00:07.4]} 43. Rxb6 {[%clk 0:00:03.3]} 43... Nf5 {[%clk 0:00:07.8]} 44. Bf2
{[%clk 0:00:02.9]} 44... R8c3 {[%clk 0:00:06.3]} 45. R6b5 {[%clk 0:00:01.6]}
45... Rxf3 {[%clk 0:00:05.8]} 46. Rf1 {[%clk 0:00:01.7]} 46... Rf4 {[%clk
0:00:03.1]} 47. Rxd5 {[%clk 0:00:01.6]} 47... Rg4+ {[%clk 0:00:03.7]} 48. Kh1
{[%clk 0:00:01.5]} 48... Nxh4 {[%clk 0:00:04.6]} 49. Bxh4 {[%clk 0:00:01.2]}
49... Rxh4+ {[%clk 0:00:05]} 50. Kg1 {[%clk 0:00:02.1]} 50... Rg4+ {[%clk
0:00:05.5]} 51. Kh1 {[%clk 0:00:02.9]} 51... Rh4+ {[%clk 0:00:03.4]} 52. Kg1
{[%clk 0:00:03.3]} 52... Rd2 {[%clk 0:00:04.3]} 53. Rd8+ {[%clk 0:00:02.3]}
53... Kh7 {[%clk 0:00:04.7]} 54. Rxf7 {[%clk 0:00:02.8]} 54... Rg4+ {[%clk
0:00:04.7]} 55. Kf1 {[%clk 0:00:03.7]} 55... Rdxd4 {[%clk 0:00:04.3]} 56. Rxd4
{[%clk 0:00:01.7]} 56... Rxd4 {[%clk 0:00:05.2]} 57. Rf5 {[%clk 0:00:01.6]}
57... Kg6 {[%clk 0:00:05.3]} 58. Rc5 {[%clk 0:00:01.6]} 58... Rf4+ {[%clk
0:00:05.6]} 59. Kg2 {[%clk 0:00:01.6]} 59... Rg4+ {[%clk 0:00:06.1]} 60. Kh3
{[%clk 0:00:02.5]} 60... Rxg5 {[%clk 0:00:07]} 61. Rc6+ {[%clk 0:00:03.4]} 61...
Kh7 {[%clk 0:00:07.4]} 62. Rc7 {[%clk 0:00:04.3]} 62... Kh6 {[%clk 0:00:07.2]}
63. Rc6+ {[%clk 0:00:04.7]} 63... g6 {[%clk 0:00:07.3]} 64. Rc8 {[%clk
0:00:05.6]} 64... Re5 {[%clk 0:00:07.4]} 65. Rc1 {[%clk 0:00:05.3]} 65... Re3+
{[%clk 0:00:07.2]} 66. Kh2 {[%clk 0:00:06]} 66... h4 {[%clk 0:00:07.3]} 67. Rc5
{[%clk 0:00:05]} 67... g5 {[%clk 0:00:07.4]} 68. Rc3 {[%clk 0:00:05.1]} 68...
Rxc3 {[%clk 0:00:05.7]} 0-1

[Event "Early-Titled-Tuesday-Blitz-October-24-2023"]
[Site "Chess.com"]
[Date "2023.10.24"]
[Round "9"]
[White "Andrei_Skvortsov"]
[Black "JimDiGrease"]
[Result "0-1"]
[WhiteElo "2666"]
[BlackElo "2872"]
[TimeControl "180+1"]
[EndTime "9:44:06 PDT"]
[Termination "JimDiGrease won by resignation"]

1. e4 {[%clk 0:03:00.9]} 1... c5 {[%clk 0:02:55.7]} 2. d4 {[%clk 0:02:59.9]}
2... cxd4 {[%clk 0:02:55.1]} 3. Qxd4 {[%clk 0:03:00.8]} 3... Nc6 {[%clk
0:02:54.1]} 4. Qd3 {[%clk 0:03:01.4]} 4... e6 {[%clk 0:02:54.2]} 5. Nc3 {[%clk
0:03:01.2]} 5... Nf6 {[%clk 0:02:54.9]} 6. Bf4 {[%clk 0:03:00.6]} 6... Bc5
{[%clk 0:02:52.3]} 7. O-O-O {[%clk 0:02:57]} 7... Ng4 {[%clk 0:02:28.7]} 8. Nh3
{[%clk 0:02:56.2]} 8... O-O {[%clk 0:02:19.4]} 9. Be2 {[%clk 0:02:42.8]} 9...
Nxf2 {[%clk 0:02:03.2]} 10. Nxf2 {[%clk 0:02:41]} 10... Bxf2 {[%clk 0:02:04.1]}
11. Bd6 {[%clk 0:02:41.3]} 11... Re8 {[%clk 0:02:00.1]} 12. h4 {[%clk 0:02:35]}
12... a6 {[%clk 0:01:54.1]} 13. Rdf1 {[%clk 0:02:24.1]} 13... Bd4 {[%clk
0:01:43.3]} 14. Qf3 {[%clk 0:02:18.8]} 14... Qf6 {[%clk 0:01:30.4]} 15. Qh3
{[%clk 0:02:06.1]} 15... Qd8 {[%clk 0:01:07.7]} 16. Qf3 {[%clk 0:01:51.7]} 16...
f6 {[%clk 0:01:01.3]} 17. Rh3 {[%clk 0:01:36.2]} 17... Ne5 {[%clk 0:00:52.5]}
18. Qf4 {[%clk 0:01:21.8]} 18... Qb6 {[%clk 0:00:49.8]} 19. Ba3 {[%clk
0:01:17.9]} 19... d6 {[%clk 0:00:41.8]} 20. h5 {[%clk 0:01:15.6]} 20... Rf8
{[%clk 0:00:38.8]} 21. Rg3 {[%clk 0:01:12.5]} 21... Rf7 {[%clk 0:00:31.9]} 22.
Kb1 {[%clk 0:01:03.9]} 22... Bd7 {[%clk 0:00:31.3]} 23. Qd2 {[%clk 0:00:54.1]}
23... Bf2 {[%clk 0:00:21.2]} 24. Rh3 {[%clk 0:00:50.3]} 24... Bc5 {[%clk
0:00:21.6]} 25. Nd1 {[%clk 0:00:33.4]} 25... h6 {[%clk 0:00:19]} 26. Rb3 {[%clk
0:00:23.5]} 26... Qc7 {[%clk 0:00:18]} 27. Rc3 {[%clk 0:00:22.2]} 27... Qa5
{[%clk 0:00:12.5]} 28. Bxc5 {[%clk 0:00:21.2]} 28... dxc5 {[%clk 0:00:12.5]} 29.
Ne3 {[%clk 0:00:21]} 29... Rd8 {[%clk 0:00:09.5]} 30. Qd6 {[%clk 0:00:14.9]}
30... Bb5 {[%clk 0:00:04.7]} 31. Qxc5 {[%clk 0:00:14.7]} 31... b6 {[%clk
0:00:04.3]} 32. Qa3 {[%clk 0:00:02.9]} 32... Qxa3 {[%clk 0:00:04.5]} 33. Rxa3
{[%clk 0:00:03.8]} 33... Bxe2 {[%clk 0:00:05.2]} 34. Re1 {[%clk 0:00:04.5]}
34... Bb5 {[%clk 0:00:05.1]} 35. Rc3 {[%clk 0:00:05.4]} 35... Rfd7 {[%clk
0:00:04.8]} 36. b3 {[%clk 0:00:05.4]} 36... a5 {[%clk 0:00:04.9]} 37. a4 {[%clk
0:00:05.9]} 37... Ba6 {[%clk 0:00:05.6]} 38. Kb2 {[%clk 0:00:06.4]} 38... Kf7
{[%clk 0:00:05.8]} 39. g3 {[%clk 0:00:06.6]} 39... Ke7 {[%clk 0:00:06.3]} 40.
Rg1 {[%clk 0:00:06.9]} 40... Rc8 {[%clk 0:00:06.5]} 41. Rxc8 {[%clk 0:00:06.5]}
41... Bxc8 {[%clk 0:00:07.4]} 42. Kc3 {[%clk 0:00:07.1]} 42... Rc7+ {[%clk
0:00:07.1]} 43. Kd2 {[%clk 0:00:07.2]} 43... Ba6 {[%clk 0:00:08]} 44. Rb1 {[%clk
0:00:05.7]} 44... Nf3+ {[%clk 0:00:06.1]} 45. Kc1 {[%clk 0:00:05]} 45... Rc5
{[%clk 0:00:05]} 46. Kb2 {[%clk 0:00:04.8]} 46... Rxh5 {[%clk 0:00:05.2]} 47.
Rd1 {[%clk 0:00:05.1]} 47... Rc5 {[%clk 0:00:04.7]} 48. Ng4 {[%clk 0:00:04.5]}
48... Ne5 {[%clk 0:00:04.7]} 49. Ne3 {[%clk 0:00:04.4]} 49... Bb7 {[%clk
0:00:05.3]} 50. Rd4 {[%clk 0:00:04.2]} 50... Rc7 {[%clk 0:00:06]} 51. g4 {[%clk
0:00:02.9]} 51... Rd7 {[%clk 0:00:06.5]} 52. Kc3 {[%clk 0:00:03]} 52... Rxd4
{[%clk 0:00:06.4]} 53. Kxd4 {[%clk 0:00:03.9]} 53... Nf3+ {[%clk 0:00:07]} 54.
Kc4 {[%clk 0:00:03.8]} 54... Ng5 {[%clk 0:00:07.9]} 55. Kb5 {[%clk 0:00:04.3]}
55... Bxe4 {[%clk 0:00:04.7]} 56. Kxb6 {[%clk 0:00:04.8]} 56... f5 {[%clk
0:00:05.6]} 57. gxf5 {[%clk 0:00:04.6]} 57... exf5 {[%clk 0:00:06.5]} 58. c4
{[%clk 0:00:04.9]} 58... f4 {[%clk 0:00:07.1]} 59. Nd1 {[%clk 0:00:05.6]} 59...
Bc2 {[%clk 0:00:06.5]} 60. Nf2 {[%clk 0:00:05.4]} 60... Bxb3 {[%clk 0:00:06.7]}
61. Kb5 {[%clk 0:00:05.2]} 61... Ne6 {[%clk 0:00:06.2]} 62. c5 {[%clk 0:00:05]}
62... Nd4+ {[%clk 0:00:06.2]} 63. Kxa5 {[%clk 0:00:04.9]} 63... g5 {[%clk
0:00:06.8]} 64. Kb4 {[%clk 0:00:04.6]} 64... Be6 {[%clk 0:00:06]} 65. a5 {[%clk
0:00:04.3]} 65... Bd5 {[%clk 0:00:04.7]} 66. a6 {[%clk 0:00:04.4]} 66... h5
{[%clk 0:00:04.1]} 67. Nd3 {[%clk 0:00:04.4]} 67... f3 {[%clk 0:00:03.6]} 68. c6
{[%clk 0:00:04.7]} 68... Nxc6+ {[%clk 0:00:03.8]} 69. Kc5 {[%clk 0:00:05.3]}
69... Ke6 {[%clk 0:00:03.4]} 70. Nf2 {[%clk 0:00:02.6]} 70... g4 {[%clk
0:00:03.6]} 71. Nd1 {[%clk 0:00:03.3]} 71... g3 {[%clk 0:00:03.5]} 72. Ne3
{[%clk 0:00:04.2]} 72... f2 {[%clk 0:00:03.2]} 73. Nxd5 {[%clk 0:00:05.1]} 73...
f1=Q {[%clk 0:00:03.8]} 74. Kxc6 {[%clk 0:00:06]} 74... Qxa6+ {[%clk 0:00:03.8]}
0-1

[Event "Early-Titled-Tuesday-Blitz-October-24-2023"]
[Site "Chess.com"]
[Date "2023.10.24"]
[Round "9"]
[White "Mikhail_Golubev"]
[Black "MatthewG-p4p"]
[Result "0-1"]
[WhiteElo "2559"]
[BlackElo "2833"]
[TimeControl "180+1"]
[EndTime "9:44:07 PDT"]
[Termination "MatthewG-p4p won on time"]

1. e4 {[%clk 0:03:00.9]} 1... e6 {[%clk 0:02:58.2]} 2. d4 {[%clk 0:03:00.2]}
2... d5 {[%clk 0:02:58.9]} 3. Bd3 {[%clk 0:03:00.6]} 3... dxe4 {[%clk
0:02:56.8]} 4. Bxe4 {[%clk 0:03:01.5]} 4... Nf6 {[%clk 0:02:57.2]} 5. Bf3 {[%clk
0:03:02]} 5... c5 {[%clk 0:02:57.9]} 6. Ne2 {[%clk 0:03:02.3]} 6... e5 {[%clk
0:02:58]} 7. dxe5 {[%clk 0:02:48.2]} 7... Qxd1+ {[%clk 0:02:58.9]} 8. Kxd1
{[%clk 0:02:48.6]} 8... Ng4 {[%clk 0:02:59.2]} 9. Bxg4 {[%clk 0:02:46.1]} 9...
Bxg4 {[%clk 0:03:00.1]} 10. f3 {[%clk 0:02:46.1]} 10... Bf5 {[%clk 0:03:00.2]}
11. g4 {[%clk 0:02:29]} 11... Bd7 {[%clk 0:02:54.6]} 12. Nbc3 {[%clk 0:02:24.8]}
12... Bc6 {[%clk 0:02:53.3]} 13. Rf1 {[%clk 0:02:21.5]} 13... h5 {[%clk
0:02:53.5]} 14. g5 {[%clk 0:02:17.9]} 14... Nd7 {[%clk 0:02:37.4]} 15. Bf4
{[%clk 0:02:13.4]} 15... O-O-O {[%clk 0:02:34.4]} 16. Ke1 {[%clk 0:02:11.7]}
16... Be7 {[%clk 0:02:31.4]} 17. Rd1 {[%clk 0:02:09.4]} 17... h4 {[%clk
0:02:29]} 18. h3 {[%clk 0:02:00.2]} 18... Rh5 {[%clk 0:02:18.2]} 19. Ne4 {[%clk
0:01:52]} 19... Bxe4 {[%clk 0:02:10.3]} 20. fxe4 {[%clk 0:01:52.9]} 20... Re8
{[%clk 0:01:43.8]} 21. g6 {[%clk 0:01:44.8]} 21... fxg6 {[%clk 0:01:43.3]} 22.
Rd5 {[%clk 0:01:31.5]} 22... b6 {[%clk 0:01:36.8]} 23. Nc3 {[%clk 0:01:29.4]}
23... c4 {[%clk 0:01:17.9]} 24. Bh2 {[%clk 0:01:23.1]} 24... Bb4 {[%clk
0:01:02.6]} 25. Rf7 {[%clk 0:01:10.5]} 25... Nxe5 {[%clk 0:01:02.6]} 26. Rxa7
{[%clk 0:01:07.2]} 26... Bxc3+ {[%clk 0:00:42.5]} 27. bxc3 {[%clk 0:01:06.4]}
27... Nf3+ {[%clk 0:00:43.2]} 28. Kf2 {[%clk 0:00:55.9]} 28... Rxd5 {[%clk
0:00:43]} 29. exd5 {[%clk 0:00:53]} 29... Nxh2 {[%clk 0:00:42.9]} 30. Rxg7
{[%clk 0:00:44.7]} 30... Rf8+ {[%clk 0:00:39.5]} 31. Kg2 {[%clk 0:00:43.3]}
31... Nf3 {[%clk 0:00:38.4]} 32. Rxg6 {[%clk 0:00:43.5]} 32... Kb7 {[%clk
0:00:31.1]} 33. Rg7+ {[%clk 0:00:41.1]} 33... Ka6 {[%clk 0:00:30.6]} 34. d6
{[%clk 0:00:40.2]} 34... Ne5 {[%clk 0:00:27.8]} 35. Re7 {[%clk 0:00:36.5]} 35...
Ng6 {[%clk 0:00:27.8]} 36. Re4 {[%clk 0:00:30.2]} 36... Kb5 {[%clk 0:00:25.2]}
37. d7 {[%clk 0:00:17.8]} 37... Rd8 {[%clk 0:00:25.2]} 38. a4+ {[%clk
0:00:18.4]} 38... Kc5 {[%clk 0:00:24.2]} 39. Rg4 {[%clk 0:00:14.7]} 39... Ne5
{[%clk 0:00:20.7]} 40. Rxh4 {[%clk 0:00:14.9]} 40... Rxd7 {[%clk 0:00:20.2]} 41.
Rh5 {[%clk 0:00:14.3]} 41... Kd5 {[%clk 0:00:17.3]} 42. Kf2 {[%clk 0:00:13.7]}
42... Rf7+ {[%clk 0:00:13.5]} 43. Ke2 {[%clk 0:00:13.8]} 43... Ra7 {[%clk
0:00:13]} 44. h4 {[%clk 0:00:11.3]} 44... Rxa4 {[%clk 0:00:11.9]} 45. Rh8 {[%clk
0:00:11.9]} 45... Ke4 {[%clk 0:00:11.1]} 46. h5 {[%clk 0:00:10.5]} 46... Ra2
{[%clk 0:00:11.5]} 47. Kd2 {[%clk 0:00:10.7]} 47... Ra1 {[%clk 0:00:11.8]} 48.
h6 {[%clk 0:00:09.7]} 48... Rh1 {[%clk 0:00:12.4]} 49. h7 {[%clk 0:00:09.1]}
49... Rh2+ {[%clk 0:00:12.5]} 50. Kc1 {[%clk 0:00:08.3]} 50... Rh5 {[%clk
0:00:13.4]} 51. Kb2 {[%clk 0:00:07.6]} 51... b5 {[%clk 0:00:10.6]} 52. Rb8
{[%clk 0:00:07.4]} 52... Rxh7 {[%clk 0:00:10.4]} 53. Rxb5 {[%clk 0:00:08.1]}
53... Rh2 {[%clk 0:00:10.5]} 54. Rb7 {[%clk 0:00:06.9]} 54... Nd3+ {[%clk
0:00:10.1]} 55. Kb1 {[%clk 0:00:07.1]} 55... Nc5 {[%clk 0:00:10.4]} 56. Re7+
{[%clk 0:00:05.8]} 56... Kd5 {[%clk 0:00:10.8]} 57. Re8 {[%clk 0:00:05.2]} 57...
Na4 {[%clk 0:00:10.7]} 58. Re3 {[%clk 0:00:04.1]} 58... Rf2 {[%clk 0:00:07.4]}
59. Kc1 {[%clk 0:00:04.3]} 59... Kc5 {[%clk 0:00:07.2]} 60. Kd1 {[%clk
0:00:04.1]} 60... Rf5 {[%clk 0:00:07]} 61. Kc1 {[%clk 0:00:04.2]} 61... Rd5
{[%clk 0:00:07.6]} 62. Rf3 {[%clk 0:00:03.6]} 62... Kb5 {[%clk 0:00:08.2]} 63.
Rg3 {[%clk 0:00:03.7]} 63... Nc5 {[%clk 0:00:08.4]} 64. Rh3 {[%clk 0:00:03.6]}
64... Rg5 {[%clk 0:00:08.8]} 65. Re3 {[%clk 0:00:03.2]} 65... Rg4 {[%clk
0:00:09.1]} 66. Kb2 {[%clk 0:00:03.4]} 66... Ne4 {[%clk 0:00:09.3]} 67. Ka3
{[%clk 0:00:03.1]} 67... Kc5 {[%clk 0:00:09.6]} 68. Ka4 {[%clk 0:00:02.5]} 68...
Rg1 {[%clk 0:00:04.5]} 69. Ka3 {[%clk 0:00:02.2]} 69... Kd5 {[%clk 0:00:04.5]}
70. Kb2 {[%clk 0:00:01.8]} 70... Rg3 {[%clk 0:00:03.5]} 0-1